bitfinex-derivatives/quotes_SOLF0:USTF0_20251219
["timestamp","ask_amount","ask_price","bid_price","bid_amount"]
[1766157301975,46.62,126.77,126.67,7.1079]
[1766157302172,46.62,126.77,126.67,10.4779]
[1766157302375,157.1084,126.77,126.67,10.4779]
[1766157302572,7.1045,126.74,126.67,3.37]
[1766157302972,0.05767635,126.72,126.69,0.00068969]
[1766157303373,7.16337635,126.72,126.69,0.00068969]
[1766157303575,0.05767635,126.72,126.69,0.00068969]
[1766157303880,110.5477,126.7,126.61,46.58]
[1766157304083,110.5414,126.71,126.61,49.9]
[1766157304483,110.5124,126.74,126.63,3.32]
[1766157304684,46.6,126.74,126.64,3.32]
[1766157304877,0.05715333,126.7,126.68,0.00040595]
[1766157305180,0.05715333,126.7,126.59,110.6377]
[1766157305387,110.5328,126.72,126.6,3.32]
[1766157305586,127.50742399,126.73,126.6,3.32]
[1766157305881,110.5208,126.73,126.61,3.32]
[1766157306082,157.1159,126.74,126.57,157.2329]
[1766157306083,110.5385,126.71,126.57,117.82239291]
[1766157306382,46.6,126.71,126.63,3.37075269]
[1766157306577,46.6,126.71,126.63,10.4303]
[1766157306780,46.6,126.71,126.63,3.32]
[1766157307182,46.62,126.74,126.65,113.9084]
[1766157307376,0.00137136,126.71,126.68,3.37135283]
[1766157307688,53.7223,126.78,126.68,3.32]
[1766157308382,0.0541882,126.74,126.69,7.1066]
[1766157309287,0.0541882,126.74,126.7,7.1062]
[1766157309476,0.0541882,126.74,126.7,7.16232524]
[1766157310186,0.0541882,126.74,126.71,7.1058]
[1766157310381,7.1001,126.82,126.7,113.91992524]
[1766157310583,46.62,126.83,126.73,3.32]
[1766157310782,46.62,126.83,126.74,7.1041]
[1766157311487,0.05951445,126.8,126.77,0.05347633]
[1766157312684,0.05951445,126.8,126.7,110.5458]
[1766157312882,180.26033252,126.83,126.7,110.5458]
[1766157312883,69.82183252,126.83,126.72,3.32]
[1766157313085,46.62,126.83,126.73,3.32]
[1766157313584,0.058102,126.79,126.77,0.05505797]
[1766157314480,0.058102,126.79,126.73,3.32]
[1766157314880,0.058102,126.79,126.7,3.32]
[1766157315192,110.4521,126.81,126.7,3.32]
[1766157315386,110.4777,126.78,126.67,3.32]
[1766157315592,0.05244707,126.74,126.71,0.05945489]
[1766157315787,0.00244707,126.74,126.71,3.37988752]
[1766157315984,0.00244707,126.74,126.72,10.4252]
[1766157316793,0.00244707,126.74,126.71,0.05988752]
[1766157317091,0.00244707,126.74,126.71,3.37988752]
[1766157317386,0.00244707,126.74,126.72,10.4251]
[1766157318076,0.00244707,126.74,126.73,3.3]
[1766157319584,46.6,126.84,126.74,10.404]
[1766157319793,46.6,126.84,126.75,7.43951846]
[1766157319985,46.6,126.84,126.76,7.43951846]
[1766157320178,53.699,126.84,126.77,7.43951846]
[1766157320391,53.699,126.84,126.74,10.404]
[1766157320392,110.4052,126.87,126.78,7.43951846]
[1766157320582,0.05853161,126.82,126.73,49.86]
[1766157320782,110.4339,126.83,126.73,3.3]
[1766157321492,7.1006,126.81,126.73,3.3]
[1766157321688,0.05441427,126.78,126.76,0.05728349]
[1766157321891,0.05441427,126.78,126.7,10.4062]
[1766157322185,110.4866,126.77,126.67,3.3]
[1766157322392,110.5327,126.72,126.6,3.3]
[1766157322592,7.1057,126.72,126.62,3.3]
[1766157322788,0.05715082,126.68,126.66,0.00036443]
[1766157322992,0.05715082,126.68,126.6,46.56]
[1766157323179,7.1063,126.71,126.6,49.86]
[1766157323785,53.7052,126.73,126.61,113.9235]
[1766157323986,46.6,126.77,126.66,3.36045374]
[1766157324185,46.6,126.77,126.66,3.3]
[1766157324499,110.4956,126.76,126.66,3.3]
[1766157324984,0.05738418,126.72,126.7,0.05196477]
[1766157325988,110.4494,126.82,126.71,3.3]
[1766157326193,157.0494,126.82,126.71,3.3]
[1766157326892,157.0494,126.82,126.75,0.05888696]
[1766157326893,0.05844165,126.78,126.75,0.05888696]
[1766157327891,157.0324,126.84,126.75,0.05888696]
[1766157328098,110.4424,126.82,126.7,160.4063]
[1766157328789,0.05541475,126.77,126.75,0.05498365]
[1766157328994,0.05401849,126.77,126.75,0.05928874]
[1766157329194,0.00401849,126.77,126.75,0.05928874]
[1766157330496,0.00401849,126.77,126.75,7.16278874]
[1766157330890,0.00401849,126.77,126.75,120.96498874]
[1766157331094,7.0966,126.88,126.78,3.3]
[1766157331686,7.0973,126.87,126.78,3.3]
[1766157332091,0.0469023,126.84,126.81,0.06048438]
[1766157333490,7.0962,126.89,126.82,7.3248164]
[1766157333696,156.9652,126.91,126.83,7.3221458]
[1766157333897,156.9652,126.91,126.8,10.4006]
[1766157334097,46.6,126.91,126.81,7.32185288]
[1766157334299,46.6,126.91,126.82,7.32185288]
[1766157334502,0.05924846,126.88,126.83,7.32185288]
[1766157334697,0.05924846,126.88,126.8,113.7522]
[1766157335000,46.6,126.91,126.81,7.31785672]
[1766157335200,46.6,126.91,126.82,7.31785672]
[1766157335395,46.6,126.91,126.83,7.31785672]
[1766157335593,0.05924846,126.88,126.84,9.054e-05]
[1766157335795,0.05924846,126.88,126.8,3.3]
[1766157336102,110.375,126.9,126.8,3.3]
[1766157336103,110.3816,126.89,126.8,3.3]
[1766157336602,0.05685264,126.86,126.83,0.05545826]
[1766157337193,0.05685264,126.86,126.8,3.3]
[1766157337393,0.05685264,126.86,126.78,46.56]
[1766157337594,110.3945,126.88,126.78,3.44]
[1766157337595,7.0967,126.88,126.78,3.44]
[1766157337891,110.3647,126.91,126.8,3.44]
[1766157338096,7.0956,126.9,126.8,3.44]
[1766157338305,7.0956,126.9,126.84,0.00488719]
[1766157338306,0.06052467,126.87,126.84,0.00488719]
[1766157338501,144.43376779,126.94,126.84,0.00488719]
[1766157338502,7.0928,126.95,126.85,3.44]
[1766157338802,110.348,126.93,126.85,3.44]
[1766157338998,110.348,126.93,126.82,3.44]
[1766157339197,7.0933,126.94,126.84,3.44]
[1766157339601,0.05276392,126.9,126.88,0.05327171]
[1766157340000,0.05276392,126.9,126.84,3.44]
[1766157341200,7.14836392,126.9,126.86,0.05602223]
[1766157341505,0.05066635,126.89,126.86,0.05602223]
[1766157342300,0.00066635,126.89,126.86,0.05602223]
[1766157342503,53.6741,126.93,126.86,3.49602223]
[1766157342905,7.0945,126.92,126.86,3.49602223]
[1766157343207,46.58,126.93,126.86,3.49602223]
[1766157343410,7.1546,126.91,126.86,0.05602223]
[1766157343610,110.4264,126.91,126.86,0.05602223]
[1766157344305,7.0957,126.9,126.86,0.05602223]
[1766157345105,7.0957,126.9,126.8,3.44]
[1766157345106,110.3778,126.9,126.8,3.44]
[1766157345307,110.3831,126.89,126.8,3.44]
[1766157345508,7.0967,126.88,126.8,3.44]
[1766157345711,110.3675,126.91,126.8,3.44]
[1766157346007,0.0602049,126.87,126.84,0.05416366]
[1766157346207,46.58,126.93,126.84,3.49416366]
[1766157346509,156.9295,126.93,126.84,3.44]
[1766157347105,7.095,126.91,126.84,3.44]
[1766157347299,0.05839275,126.9,126.87,0.05043157]
[1766157347507,110.3081,126.98,126.87,3.49043157]
[1766157347702,156.8681,126.98,126.87,3.44]
[1766157348209,156.8681,126.98,126.88,3.44]
[1766157348210,7.0916,126.97,126.88,3.44]
[1766157348613,110.2716,127.02,126.89,110.3798]
[1766157348807,110.3397,126.94,126.86,3.44]
[1766157349006,110.3487,126.93,126.83,3.44]
[1766157349406,110.3732,126.9,126.83,3.44]
[1766157349709,110.3649,126.91,126.79,3.44]
[1766157350019,0.05165092,126.86,126.84,0.05614089]
[1766157350308,7.0951,126.91,126.84,0.05614089]
[1766157350612,7.0957,126.9,126.84,0.05614089]
[1766157350809,110.3736,126.9,126.84,0.05614089]
[1766157351010,110.3833,126.89,126.79,3.44]
[1766157351312,7.0968,126.88,126.79,3.44]
[1766157352104,0.05871325,126.85,126.82,0.05938441]
[1766157352914,0.05871325,126.85,126.76,3.44]
[1766157353214,110.4106,126.86,126.76,3.44]
[1766157353814,220.8584,126.84,126.73,3.44]
[1766157354012,110.50350626,126.82,126.73,3.44]
[1766157354213,110.4267,126.84,126.73,3.44]
[1766157354408,7.0995,126.83,126.73,3.44]
[1766157354616,167.39552499,126.86,126.74,3.44]
[1766157354617,156.9706,126.86,126.74,3.44]
[1766157354819,46.56,126.86,126.75,3.44]
[1766157355009,0.05277098,126.82,126.79,0.0587792]
[1766157355210,46.56,126.86,126.79,0.0587792]
[1766157356318,0.05091459,126.84,126.79,0.0587792]
[1766157356808,0.05091459,126.84,126.79,3.4987792]
[1766157356809,0.00091459,126.84,126.79,3.4987792]
[1766157357010,46.56,126.9,126.79,3.4987792]
[1766157357208,46.56,126.9,126.81,3.44]
[1766157358110,0.0535813,126.87,126.84,0.05178926]
[1766157359212,0.0035813,126.87,126.84,0.05178926]
[1766157359519,174.41422499,126.95,126.84,3.49178926]
[1766157359717,163.9893,126.95,126.84,3.44]
[1766157359924,46.56,126.95,126.86,3.44]
[1766157360212,46.56,126.95,126.87,10.5366]
[1766157360419,46.56,126.95,126.87,3.44]
[1766157360711,7.091,126.98,126.9,0.05432523]
[1766157360914,7.091,126.98,126.88,3.44]
[1766157361110,110.3058,126.98,126.88,3.44]
[1766157361301,46.56,126.99,126.88,3.44]
[1766157361504,110.3044,126.98,126.88,3.44]
[1766157361706,46.56,126.99,126.92,0.05453133]
[1766157361910,110.3062,126.98,126.92,0.00453133]
[1766157362216,53.6504,126.99,126.92,0.00453133]
[1766157362513,39.56,126.99,126.92,3.44453133]
[1766157362710,3.16,127.05,126.93,163.9575]
[1766157362908,3.16,127.06,126.95,110.325]
[1766157363108,3.16,127.06,126.98,110.2986]
[1766157363310,110.1867,127.12,126.98,0.05063778]
[1766157363513,1.37040246,127.09,126.97,156.829]
[1766157363818,46.56,127.11,126.99,110.2909]
[1766157364024,10.42492499,127.11,126.99,110.2909]
[1766157364215,56.98492499,127.11,126.99,110.2909]
[1766157364404,110.1762,127.13,127.04,0.05665284]
[1766157364714,51.68648001,127.14,127.03,110.2567]
[1766157365018,5.12648001,127.14,127.07,0.06006834]
[1766157365918,3.22,127.13,127.07,0.06006834]
[1766157366321,5.12648001,127.14,127.07,0.06006834]
[1766157366322,3.22,127.44,127.3,110.0194]
[1766157366618,3.22,127.39,127.27,46.5]
[1766157366828,3.22,127.39,127.25,110.069]
[1766157367020,3.22,127.39,127.25,110.0649]
[1766157367218,3.22,127.36,127.23,110.0837]
[1766157367416,3.22,127.35,127.2,110.1076]
[1766157367613,3.22,127.34,127.21,110.0979]
[1766157367822,3.22,127.34,127.23,110.0827]
[1766157368112,0.05880051,127.3,127.27,0.055799]
[1766157368320,0.053653,127.3,127.24,110.0747]
[1766157368506,0.053653,127.3,127.23,110.0787]
[1766157368712,0.053653,127.3,127.25,110.0659]
[1766157368913,0.053653,127.3,127.27,110.048]
[1766157369111,0.053653,127.3,127.24,110.0705]
[1766157369320,0.053653,127.3,127.26,0.05401897]
[1766157369530,0.053653,127.3,127.2,110.1094]
[1766157369719,3.22,127.31,127.19,110.1164]
[1766157370221,3.22,127.3,127.18,110.1219]
[1766157370817,3.22,127.34,127.23,110.0813]
[1766157371019,46.48,127.39,127.28,110.0403]
[1766157371217,100.0,127.4,127.31,110.0145]
[1766157371412,3.22,127.39,127.27,110.0471]
[1766157371716,3.22,127.35,127.23,156.5194]
[1766157371916,3.22,127.35,127.21,110.0998]
[1766157372116,0.05113402,127.29,127.27,0.0579463]
[1766157372421,156.4422,127.38,127.27,0.05256908]
[1766157372422,3.22,127.38,127.27,0.05256908]
[1766157372719,100.0,127.4,127.3,110.0233]
[1766157372915,100.0,127.4,127.33,109.9975]
[1766157373121,48.03770383,127.4,127.34,109.9876]
[1766157373315,48.03770383,127.4,127.33,109.9975]
[1766157373618,11.63340383,127.4,127.34,156.427]
[1766157373827,8.01e-05,127.4,127.35,0.05963725]
[1766157374122,8.01e-05,127.4,127.35,110.03393725]
[1766157374430,8.01e-05,127.4,127.35,0.05963725]
[1766157374926,3.22,127.39,127.28,110.0404]
[1766157375129,3.22,127.39,127.3,110.0232]
[1766157375421,8.01e-05,127.4,127.33,109.9952]
[1766157375623,8.01e-05,127.4,127.36,109.9696]
[1766157375823,8.01e-05,127.4,127.34,156.406]
[1766157376029,8.01e-05,127.4,127.37,0.05793032]
[1766157376215,8.01e-05,127.4,127.33,46.42]
[1766157376517,8.01e-05,127.4,127.33,156.4162]
[1766157376723,8.01e-05,127.4,127.31,46.4]
[1766157376923,8.01e-05,127.4,127.34,0.05691793]
[1766157376924,123.52582025,127.4,127.34,0.05691793]
[1766157377125,123.52582025,127.4,127.24,46.4]
[1766157377126,113.1902,127.37,127.24,46.4]
[1766157377317,113.1883,127.37,127.24,156.4749]
[1766157377524,3.22,127.37,127.26,110.0564]
[1766157377719,8.01e-05,127.4,127.31,110.0142]
[1766157377921,8.01e-05,127.4,127.36,109.967]
[1766157378220,0.05511285,127.39,127.37,0.05944341]
[1766157378422,0.05511285,127.39,127.27,110.0446]
[1766157378613,0.05511285,127.39,127.24,110.072]
[1766157378614,10.36284015,127.35,127.24,110.072]
[1766157378813,10.36284015,127.35,127.23,163.5571]
[1766157379018,4.67,127.36,127.25,110.0658]
[1766157379224,163.451,127.38,127.25,117.1414]
[1766157379225,10.36284015,127.38,127.25,117.1414]
[1766157379424,114.6654,127.34,127.21,110.1034]
[1766157379621,0.05216913,127.32,127.22,110.0914]
[1766157379827,10.36284015,127.35,127.24,110.0741]
[1766157380125,10.36284015,127.35,127.25,46.4]
[1766157380324,4.67,127.3,127.18,110.1227]
[1766157380513,0.05388667,127.25,127.23,0.05495183]
[1766157380712,0.05801905,127.25,127.24,8.61717147]
[1766157381117,10.36284015,127.36,127.24,166.65127147]
[1766157381419,4.67,127.34,127.25,8.61717147]
[1766157381621,4.67,127.37,127.26,8.61717147]
[1766157381823,4.67,127.35,127.22,110.0927]
[1766157382022,0.05514622,127.3,127.27,0.05049748]
[1766157382220,114.75394622,127.3,127.27,0.00132326]
[1766157382427,114.708,127.29,127.19,46.38]
[1766157382624,114.708,127.29,127.2,7.83901943]
[1766157382928,114.7087,127.29,127.19,46.38]
[1766157383124,110.0471,127.28,127.2,7.76831672]
[1766157383318,0.05034763,127.25,127.23,0.0551387]
[1766157383526,110.0031,127.33,127.22,10.36284015]
[1766157383725,121.7374,127.34,127.23,7.76642555]
[1766157383926,121.7374,127.34,127.27,0.05582755]
[1766157383927,0.05223287,127.3,127.27,0.05582755]
[1766157384325,0.05223287,127.3,127.28,7.75486697]
[1766157384526,4.67,127.38,127.29,7.75350563]
[1766157384826,4.67,127.38,127.26,110.0564]
[1766157385027,8.01e-05,127.4,127.29,110.0321]
[1766157385230,8.01e-05,127.4,127.31,110.0109]
[1766157385532,8.01e-05,127.4,127.35,109.9775]
[1766157385827,51.09,127.5,127.36,164.10712232]
[1766157386033,160.9487,127.5,127.37,7.75552232]
[1766157386223,109.7917,127.58,127.44,109.9018]
[1766157386425,4.67,127.6,127.47,109.8745]
[1766157386627,4.67,127.59,127.48,54.07406679]
[1766157386829,4.67,127.59,127.49,117.57286679]
[1766157387018,4.67,127.59,127.49,109.8583]
[1766157387220,4.67,127.59,127.52,0.0539556]
[1766157387221,0.05483571,127.55,127.52,0.0539556]
[1766157387531,0.05483571,127.55,127.44,46.36]
[1766157387532,4.72483571,127.55,127.44,109.9011]
[1766157387723,4.67,127.55,127.45,54.06140494]
[1766157387920,4.67,127.55,127.46,7.70140494]
[1766157388233,4.67,127.55,127.45,156.2531]
[1766157388527,4.67,127.55,127.41,109.9279]
[1766157388728,4.67,127.55,127.42,7.69731619]
[1766157388729,0.05431834,127.51,127.42,7.69731619]
[1766157389028,4.67,127.54,127.41,109.9279]
[1766157389234,4.67,127.51,127.4,46.36]
[1766157389538,4.67,127.48,127.38,109.9543]
[1766157389736,0.05610316,127.44,127.42,0.05060771]
[1766157389935,0.06037301,127.44,127.42,0.05012585]
[1766157390134,0.00037301,127.44,127.42,0.05012585]
[1766157390433,0.00037301,127.44,127.37,1.83366447]
[1766157391436,0.00037301,127.44,127.39,0.051672]
[1766157392656,0.00037301,127.44,127.39,109.994072]
[1766157392829,4.67,127.55,127.44,109.902]
[1766157393024,46.38,127.57,127.46,109.8847]
[1766157393238,46.38,127.57,127.47,7.71306874]
[1766157393536,46.38,127.57,127.44,156.2422]
[1766157393537,109.8126,127.55,127.44,46.34]
[1766157393740,109.8132,127.55,127.45,7.71615625]
[1766157393938,0.06033612,127.51,127.49,0.00156902]
[1766157394232,116.9824,127.47,127.37,1.83366447]
[1766157394440,109.8992,127.45,127.37,1.83366447]
[1766157394640,117.0336,127.41,127.27,110.045]
[1766157394835,7.1,127.4,127.28,7.7424425]
[1766157395143,0.05630927,127.35,127.33,0.05638529]
[1766157395443,0.05488242,127.35,127.33,0.05638529]
[1766157396046,0.05488242,127.35,127.28,110.0406]
[1766157396233,7.1,127.39,127.29,7.75689257]
[1766157396431,117.0855,127.35,127.2,110.1065]
[1766157396645,7.1,127.31,127.21,7.76668535]
[1766157396941,0.05880564,127.27,127.19,46.32]
[1766157397242,7.1,127.28,127.19,46.32]
[1766157398041,0.05813251,127.25,127.22,0.05026787]
[1766157398241,7.1,127.32,127.22,0.05026787]
[1766157398436,7.1,127.3,127.19,46.32]
[1766157398641,117.1479,127.28,127.16,46.34]
[1766157398836,7.1,127.28,127.16,156.4844]
[1766157399137,7.1,127.32,127.21,0.05171349]
[1766157399345,7.1,127.32,127.17,110.1352]
[1766157399346,7.1,127.3,127.17,110.1352]
[1766157399543,7.1,127.3,127.21,110.1011]
[1766157399727,7.1,127.34,127.22,7.64841945]
[1766157399930,7.1,127.34,127.24,110.0732]
[1766157400232,7.1,127.38,127.28,0.05302587]
[1766157400434,117.0622,127.38,127.26,46.34]
[1766157400940,7.1,127.37,127.28,110.0405]
[1766157401153,7.1,127.42,127.29,117.50992599]
[1766157401440,0.05418072,127.37,127.34,0.05695266]
[1766157401745,0.05418072,127.37,127.26,156.3943]
[1766157401931,7.1,127.39,127.28,110.0392]
[1766157402138,7.1,127.39,127.29,110.0315]
[1766157402436,7.1,127.43,127.31,110.0146]
[1766157402634,7.1,127.42,127.26,156.3996]
[1766157402844,7.1,127.42,127.33,0.00046406]
[1766157402845,0.05748712,127.35,127.33,0.00046406]
[1766157403035,7.1,127.39,127.27,110.0458]
[1766157403434,7.1,127.39,127.28,117.27443707]
[1766157403746,7.1,127.39,127.32,0.05298499]
[1766157403747,0.05354383,127.35,127.32,0.05298499]
[1766157404045,0.05354383,127.35,127.32,110.05888499]
[1766157404046,0.00354383,127.35,127.32,110.05888499]
[1766157404340,0.00354383,127.35,127.33,7.25517019]
[1766157404538,0.00354383,127.35,127.34,7.25517019]
[1766157404734,0.00354383,127.35,127.32,46.39298499]
[1766157404937,0.00354383,127.35,127.32,0.05298499]
[1766157405443,0.00354383,127.35,127.33,124.33559028]
[1766157405640,0.00354383,127.35,127.34,7.26458361]
[1766157405837,0.00354383,127.35,127.32,110.05878499]
[1766157406143,0.00354383,127.35,127.32,0.05298499]
[1766157406338,0.00354383,127.35,127.33,7.13726703]
[1766157406544,0.00354383,127.35,127.34,7.13412797]
[1766157406743,7.1,127.45,127.35,117.0462]
[1766157406944,7.1,127.49,127.37,109.9613]
[1766157407139,7.1,127.49,127.38,7.15664569]
[1766157407339,7.1,127.49,127.39,7.15664569]
[1766157407541,7.1,127.45,127.32,110.0038]
[1766157407748,7.1,127.45,127.37,0.05979878]
[1766157407949,7.15683354,127.4,127.3,117.0939]
[1766157408142,7.15683354,127.4,127.34,0.05764006]
[1766157408143,0.05208271,127.36,127.34,0.05764006]
[1766157408341,0.00208271,127.36,127.34,0.05764006]
[1766157408540,0.00208271,127.36,127.34,117.11354006]
[1766157408951,0.00208271,127.36,127.34,0.05764006]
[1766157410843,0.00208271,127.36,127.3,46.34]
[1766157411049,0.00208271,127.36,127.31,5.78069223]
[1766157411348,0.00208271,127.36,127.32,5.78812208]
[1766157411651,0.00208271,127.36,127.33,5.78812208]
[1766157411850,0.00208271,127.36,127.33,0.05271633]
[1766157412047,0.00208271,127.36,127.34,5.78860056]
[1766157412255,0.00208271,127.36,127.33,0.05271633]
[1766157412548,0.00208271,127.36,127.3,46.34]
[1766157413054,0.00208271,127.36,127.31,110.0172]
[1766157413446,0.00208271,127.36,127.34,219.9824]
[1766157413647,7.1,127.5,127.38,109.955]
[1766157413849,7.1,127.47,127.36,46.34]
[1766157414049,7.1,127.47,127.36,156.3124]
[1766157414561,7.1,127.43,127.32,7.04940362]
[1766157414854,7.1,127.41,127.3,7.04940362]
[1766157415158,7.1,127.38,127.28,110.0406]
[1766157415347,7.1,127.38,127.26,163.44630362]
[1766157415544,7.1,127.37,127.26,46.34]
[1766157415741,0.05975053,127.33,127.24,110.0753]
[1766157415942,7.1,127.36,127.25,117.1431]
[1766157416152,7.1,127.37,127.25,110.0674]
[1766157416355,156.279,127.43,127.28,110.0425]
[1766157416356,117.0396,127.4,127.28,110.0425]
[1766157416545,7.1,127.4,127.3,117.0958]
[1766157416745,0.05499049,127.36,127.29,46.34]
[1766157416946,0.05499049,127.36,127.27,110.0459]
[1766157417146,7.1,127.36,127.26,46.34]
[1766157417352,7.1,127.36,127.25,110.066]
[1766157417654,7.1,127.35,127.22,110.09]
[1766157417853,0.00282252,127.3,127.27,110.10046447]
[1766157418058,7.1,127.35,127.26,156.3968]
[1766157418352,7.1,127.35,127.26,46.34]
[1766157418553,117.0512,127.39,127.26,156.3948]
[1766157418752,7.1,127.39,127.31,110.017]
[1766157418947,0.05718543,127.36,127.34,0.0603702]
[1766157419152,7.1,127.42,127.3,110.0231]
[1766157419950,7.1,127.42,127.32,110.0084]
[1766157420152,0.05106028,127.37,127.35,0.05014598]
[1766157420353,0.0511216,127.37,127.35,0.05014598]
[1766157420549,7.1,127.46,127.36,109.9724]
[1766157420754,1.30264499,127.47,127.39,109.9466]
[1766157421057,7.1,127.5,127.4,109.9355]
[1766157421256,53.46,127.53,127.43,109.9134]
[1766157421464,7.1,127.57,127.46,7.0638]
[1766157421764,7.15870101,127.53,127.43,109.9104]
[1766157421947,7.1,127.53,127.42,156.257]
[1766157422355,7.1,127.49,127.37,109.9592]
[1766157422651,7.1,127.48,127.38,109.9541]
[1766157422850,0.04983732,127.44,127.42,0.05178397]
[1766157423050,7.1,127.53,127.42,109.97298397]
[1766157423251,7.1,127.57,127.47,109.8756]
[1766157423554,7.1,127.61,127.51,109.8401]
[1766157423754,7.1,127.61,127.5,109.8483]
[1766157424062,0.05991543,127.57,127.54,0.05611204]
[1766157424262,0.05991543,127.57,127.47,156.1991]
[1766157424455,7.1,127.61,127.51,109.8413]
[1766157424760,7.1,127.61,127.5,109.8493]
[1766157425059,7.1,127.61,127.52,109.8331]
[1766157425358,10.03,127.65,127.55,109.85389288]
[1766157425557,119.7664,127.64,127.53,46.32]
[1766157425753,119.7664,127.64,127.47,46.32]
[1766157425754,10.03,127.57,127.47,46.32]
[1766157425954,10.03,127.57,127.48,109.8672]
[1766157426160,10.03,127.57,127.47,156.1924]
[1766157426360,10.03,127.57,127.48,109.8674]
[1766157426561,0.00081891,127.53,127.51,0.05502657]
[1766157426868,0.00081891,127.53,127.41,46.32]
[1766157426869,10.03,127.52,127.41,46.32]
[1766157427163,10.03,127.52,127.38,109.9531]
[1766157427164,119.8775,127.51,127.38,109.9531]
[1766157427352,119.8775,127.51,127.33,8.96434557]
[1766157427353,119.9049,127.48,127.33,7.04940362]
[1766157427661,0.05565514,127.42,127.4,0.0542684]
[1766157427863,119.9388,127.44,127.31,117.0854]
[1766157428055,10.03,127.43,127.32,52.01210729]
[1766157428364,10.03,127.43,127.33,5.69210729]
[1766157428561,116.9742,127.44,127.31,163.407]
[1766157428562,119.9371,127.44,127.34,5.70266594]
[1766157428864,0.05687684,127.4,127.38,0.00059525]
[1766157429157,10.03,127.4,127.28,117.09070362]
[1766157429365,10.03,127.38,127.29,5.71094056]
[1766157429555,10.03,127.38,127.26,156.3532]
[1766157429756,119.9646,127.41,127.28,110.0396]
[1766157429959,119.993,127.38,127.25,156.3677]
[1766157430158,119.993,127.38,127.3,0.05291073]
[1766157430159,0.05535057,127.33,127.3,0.05291073]
[1766157430460,0.05535057,127.33,127.22,117.1642]
[1766157430461,120.0596,127.3,127.17,204.3524]
[1766157430666,10.03,127.28,127.18,5.73343005]
[1766157430864,10.03,127.28,127.19,5.73467837]
[1766157431169,46.34,127.35,127.23,110.0839]
[1766157431464,46.34,127.35,127.28,0.05282239]
[1766157431465,0.05119934,127.3,127.28,0.05282239]
[1766157431662,10.03,127.37,127.28,0.05282239]
[1766157431865,127.0337,127.41,127.27,110.0479]
[1766157432051,127.0337,127.41,127.24,110.0723]
[1766157432052,10.03,127.41,127.31,110.0096]
[1766157432258,109.9171,127.43,127.32,5.72364251]
[1766157432456,109.8952,127.46,127.33,109.9966]
[1766157432780,0.05907462,127.41,127.38,0.05634528]
[1766157432960,0.05907462,127.41,127.38,0.05137489]
[1766157433158,119.908,127.48,127.35,109.9763]
[1766157433359,119.9118,127.47,127.34,109.9848]
[1766157433662,10.03,127.47,127.36,109.9706]
[1766157433863,119.922,127.46,127.33,117.063]
[1766157434064,109.9085,127.44,127.31,110.0127]
[1766157434363,0.0036934,127.39,127.36,0.05378284]
[1766157434565,10.03,127.5,127.4,109.9369]
[1766157434754,10.03,127.5,127.39,109.94]
[1766157434957,119.8968,127.49,127.36,109.9713]
[1766157435255,119.9038,127.48,127.37,5.72495465]
[1766157435461,0.05529586,127.44,127.41,0.05721185]
[1766157435657,0.05529586,127.44,127.34,109.9858]
[1766157435870,10.03,127.47,127.35,12.79963745]
[1766157436066,10.03,127.47,127.36,5.72953745]
[1766157436271,10.03,127.51,127.39,109.9446]
[1766157436458,10.03,127.51,127.41,109.9278]
[1766157436671,0.05311447,127.47,127.45,0.00257714]
[1766157436963,0.05311447,127.47,127.38,46.32]
[1766157437163,119.8948,127.49,127.38,46.32]
[1766157437366,10.03,127.49,127.39,5.72836318]
[1766157437574,109.8385,127.52,127.4,5.72645265]